fUSD/lending_fUSD_20250423
["ID","MTS","AMOUNT","RATE_DAILY","PERIOD"]
[358709653,1745398252470,-500.0,0.00046749,30]
[358709654,1745398252480,-500.0,0.00046749,30]
[358709655,1745398252490,-500.0,0.00046749,30]
[358709656,1745398252503,-500.0,0.00046749,30]
[358709657,1745398252513,-500.0,0.00046749,30]
[358709658,1745398252523,-500.0,0.00046749,30]
[358709659,1745398252533,-500.0,0.00046749,30]
[358709660,1745398252543,-311.93959397,0.00046749,30]
[358709661,1745398252553,-504.38379776,0.00046749,30]
[358709662,1745398252563,-500.0,0.00046749,14]
[358709663,1745398252572,-500.0,0.00046749,14]
[358709664,1745398252582,-500.0,0.00046749,14]
[358709665,1745398252593,-500.0,0.00046749,14]
[358709666,1745398252603,-500.0,0.00046749,14]
[358709667,1745398252614,-500.0,0.00046749,14]
[358709668,1745398252623,-500.0,0.00046749,14]
[358709669,1745398252633,-500.0,0.00046749,14]
[358709670,1745398252643,-500.0,0.00046749,14]
[358709671,1745398252653,-500.0,0.00046749,14]
[358709672,1745398252662,-500.0,0.00046749,14]
[358709673,1745398252672,-500.0,0.00046749,14]
[358709674,1745398252681,-500.0,0.00046749,14]
[358709675,1745398252691,-500.0,0.00046749,14]
[358709676,1745398252700,-500.0,0.00046749,14]
[358709677,1745398252710,-500.0,0.00046749,14]
[358709678,1745398252720,-517.88026959,0.00046749,14]
[358709679,1745398252730,-1464.28,0.00046749,30]
[358709680,1745398252740,-1464.28,0.00046749,30]
[358709681,1745398252751,-500.0,0.00046749,2]
[358709682,1745398252760,-1464.28,0.00046749,30]
[358709683,1745398252770,-166.5256326,0.00046749,2]
[358709684,1745398252780,-1464.28,0.00046749,30]
[358709685,1745398252791,-1464.28,0.00046749,30]
[358709686,1745398252801,-1464.28,0.00046749,30]
[358709687,1745398252811,-1464.28,0.00046749,30]
[358709688,1745398252820,-1464.28,0.00046749,30]
[358709689,1745398252830,-1464.28,0.00046749,30]
[358709690,1745398252840,-1464.28,0.00046749,30]
[358709691,1745398252850,-1464.28,0.00046749,30]
[358709692,1745398252860,-1464.28,0.00046749,30]
[358709693,1745398252870,-643.34020372,0.00046749,30]
[358709694,1745398252880,-1464.28,0.00046749,30]
[358709695,1745398252889,-1464.28,0.00046749,30]
[358709696,1745398252899,-1464.28,0.00046749,30]
[358709697,1745398253116,-1464.28,0.00046749,30]
[358709698,1745398253126,-1464.28,0.00046749,30]
[358709699,1745398253136,-1464.28,0.00046749,30]
[358709700,1745398253146,-1464.28,0.00046749,30]
[358709701,1745398253156,-1464.28,0.00046749,30]
[358709702,1745398253166,-1464.28,0.00046749,30]
[358709703,1745398253175,-1464.28,0.00046749,30]
[358709704,1745398253184,-1464.28,0.00046749,30]
[358709705,1745398253194,-1464.49,0.00046749,30]
[358709706,1745398253203,-512.7271637,0.00046749,30]
[358709707,1745398253213,-615.67,0.00046749,30]
[358709708,1745398253222,-615.67,0.00046749,30]
[358709709,1745398253232,-615.67,0.00046749,30]
[358709710,1745398253242,-615.67,0.00046749,30]
[358709711,1745398253251,-615.67,0.00046749,30]
[358709712,1745398253261,-615.67,0.00046749,30]
[358709713,1745398253271,-615.67,0.00046749,30]
[358709714,1745398253281,-615.67,0.00046749,30]
[358709715,1745398253291,-500.0,0.00046749,30]
[358709716,1745398253301,-615.67,0.00046749,30]
[358709717,1745398253311,-500.0,0.00046749,30]
[358709718,1745398253320,-615.67,0.00046749,30]
[358709719,1745398253330,-500.0,0.00046749,30]
[358709720,1745398253341,-615.67,0.00046749,30]
[358709721,1745398253351,-500.0,0.00046749,30]
[358709722,1745398253361,-615.67,0.00046749,30]
[358709723,1745398253370,-500.0,0.00046749,30]
[358709724,1745398253380,-2119.25,0.00046749,30]
[358709725,1745398253390,-500.0,0.00046749,30]
[358709726,1745398253400,-2119.25,0.00046749,30]
[358709727,1745398253409,-500.0,0.00046749,30]
[358709728,1745398253419,-2119.25,0.00046749,30]
[358709729,1745398253429,-500.0,0.00046749,30]
[358709730,1745398253439,-2119.25,0.00046749,30]
[358709731,1745398253448,-500.0,0.00046749,30]
[358709732,1745398253457,-561.6994382,0.00046749,30]
[358709733,1745398253467,-2119.25,0.00046749,30]
[358709734,1745398253477,-615.67,0.00046749,30]
[358709735,1745398253487,-2119.25,0.00046749,30]
[358709736,1745398253499,-2119.25,0.00046749,30]
[358709737,1745398253513,-615.67,0.00046749,30]
[358709738,1745398253523,-615.67,0.00046749,30]
[358709739,1745398253533,-2119.25,0.00046749,30]
[358709740,1745398253543,-615.67,0.00046749,30]
[358709741,1745398253552,-2119.25,0.00046749,30]
[358709742,1745398253561,-615.67,0.00046749,30]
[358709743,1745398253571,-2119.25,0.00046749,30]
[358709744,1745398253583,-615.67,0.00046749,30]
[358709745,1745398253594,-2119.25,0.00046749,30]
[358709746,1745398253604,-2119.25,0.00046749,30]
[358709747,1745398253614,-615.67,0.00046749,30]
[358709748,1745398253624,-2119.25,0.00046749,30]
[358709749,1745398253634,-615.67,0.00046749,30]
[358709750,1745398253644,-2119.25,0.00046749,30]
[358709751,1745398253654,-2119.25,0.00046749,30]
[358709752,1745398253663,-615.67,0.00046749,30]
[358709753,1745398253673,-2119.25,0.00046749,30]
[358709754,1745398253683,-615.67,0.00046749,30]
[358709755,1745398253692,-2119.25,0.00046749,30]
[358709756,1745398253702,-2119.25,0.00046749,30]
[358709757,1745398253712,-2119.25,0.00046749,30]
[358709758,1745398253721,-2119.25,0.00046749,30]
[358709759,1745398253731,-2119.25,0.00046749,30]
[358709760,1745398253741,-2119.25,0.00046749,30]
[358709761,1745398253750,-2119.25,0.00046749,30]
[358709762,1745398253760,-2119.47916433,0.00046749,30]
[358709763,1745398253770,-615.67,0.00046749,30]
[358709764,1745398253779,-615.80634938,0.00046749,30]
[358709765,1745398253789,-524.60034236,0.00046749,30]
[358709766,1745398253799,-500.0,0.00046749,30]
[358709767,1745398253809,-500.0,0.00046749,30]
[358709768,1745398253819,-500.0,0.00046749,30]
[358709769,1745398253829,-500.0,0.00046749,30]
[358709770,1745398253839,-500.0,0.00046749,30]
[358709771,1745398253849,-500.0,0.00046749,30]
[358709772,1745398253858,-529.47180728,0.00046749,30]
[358709773,1745398253868,-500.0,0.00046749,2]
[358709774,1745398253878,-500.0,0.00046749,2]
[358709775,1745398253888,-500.0,0.00046749,2]
[358709776,1745398253898,-500.0,0.00046749,2]
[358709777,1745398253908,-500.0,0.00046749,2]
[358709778,1745398253918,-500.0,0.00046749,2]
[358709779,1745398253929,-213.73086535,0.00046749,2]
[358709780,1745398253939,-500.0,0.00046749,30]
[358709781,1745398253954,-500.0,0.00046749,30]
[358709782,1745398253965,-500.0,0.00046749,30]
[358709783,1745398253976,-500.0,0.00046749,30]
[358709784,1745398253987,-500.0,0.00046749,30]
[358709785,1745398253998,-500.0,0.00046749,30]
[358709786,1745398254008,-344.12001713,0.00046749,30]
[358709787,1745398254018,-500.0,0.00046749,30]
[358709788,1745398254029,-514.12181903,0.00046749,30]
[358709789,1745398254039,-500.0,0.00046749,30]
[358709790,1745398254051,-500.0,0.00046749,30]
[358709791,1745398254061,-500.0,0.00046749,30]
[358709792,1745398254072,-500.0,0.00046749,30]
[358709793,1745398254082,-500.0,0.00046749,30]
[358709794,1745398254094,-500.0,0.00046749,30]
[358709795,1745398254104,-500.0,0.00046749,30]
[358709796,1745398254114,-500.0,0.00046749,30]
[358709797,1745398254124,-628.94968973,0.00046749,30]
[358709798,1745398254134,-500.0,0.00046749,30]
[358709799,1745398254145,-500.0,0.00046749,30]
[358709800,1745398254155,-500.0,0.00046749,30]
[358709801,1745398254165,-500.0,0.00046749,30]
[358709802,1745398254175,-500.0,0.00046749,30]
[358709803,1745398254186,-500.0,0.00046749,30]
[358709804,1745398254196,-500.0,0.00046749,30]
[358709805,1745398254206,-500.0,0.00046749,30]
[358709806,1745398254216,-500.0,0.00046749,30]
[358709807,1745398254226,-500.0,0.00046749,30]
[358709808,1745398254236,-500.0,0.00046749,30]
[358709809,1745398254246,-500.0,0.00046749,30]
[358709810,1745398254257,-795.93,0.00046749,30]
[358709811,1745398254268,-500.0,0.00046749,30]
[358709812,1745398254278,-795.93,0.00046749,30]
[358709813,1745398254288,-500.0,0.00046749,30]
[358709814,1745398254299,-795.93,0.00046749,30]
[358709815,1745398254309,-500.0,0.00046749,30]
[358709816,1745398254319,-795.93,0.00046749,30]
[358709817,1745398254329,-543.52633304,0.00046749,30]
[358709818,1745398254339,-795.93,0.00046749,30]
[358709819,1745398254350,-795.93,0.00046749,30]
[358709820,1745398254360,-795.93,0.00046749,30]
[358709821,1745398254370,-795.93,0.00046749,30]
[358709822,1745398254384,-795.93,0.00046749,30]
[358709823,1745398254394,-795.93,0.00046749,30]
[358709824,1745398254404,-795.93,0.00046749,30]
[358709825,1745398254414,-795.93,0.00046749,30]
[358709826,1745398254424,-795.93,0.00046749,30]
[358709827,1745398254435,-795.93,0.00046749,30]
[358709828,1745398254446,-795.93,0.00046749,30]
[358709829,1745398254456,-795.93,0.00046749,30]
[358709830,1745398254466,-795.93,0.00046749,30]
[358709831,1745398254476,-795.93,0.00046749,30]
[358709832,1745398254486,-500.0,0.00046749,30]
[358709833,1745398254497,-795.93,0.00046749,30]
[358709834,1745398254509,-500.0,0.00046749,30]
[358709835,1745398254519,-795.93,0.00046749,30]
[358709836,1745398254529,-500.0,0.00046749,30]
[358709837,1745398254538,-795.93,0.00046749,30]
[358709838,1745398254549,-500.0,0.00046749,30]
[358709839,1745398254559,-795.93,0.00046749,30]
[358709840,1745398254569,-500.0,0.00046749,30]
[358709841,1745398254581,-795.93,0.00046749,30]
[358709842,1745398254592,-500.0,0.00046749,30]
[358709843,1745398254602,-795.93392384,0.00046749,30]
[358709844,1745398254612,-500.0,0.00046749,30]
[358709845,1745398254622,-500.0,0.00046749,30]
[358709846,1745398254631,-500.0,0.00046749,30]
[358709847,1745398254641,-500.0,0.00046749,30]
[358709848,1745398254652,-500.0,0.00046749,30]
[358709849,1745398254662,-500.0,0.00046749,30]
[358709850,1745398254672,-500.0,0.00046749,30]
[358709851,1745398254681,-813.53,0.00046749,30]
[358709852,1745398254691,-500.0,0.00046749,30]
[358709853,1745398254701,-813.53,0.00046749,30]
[358709854,1745398254711,-397.76886401,0.00046749,30]
[358709855,1745398254721,-813.53,0.00046749,30]
[358709856,1745398254731,-500.0,0.00046749,30]
[358709857,1745398254740,-813.53,0.00046749,30]
[358709858,1745398254750,-500.0,0.00046749,30]
[358709859,1745398254760,-813.53,0.00046749,30]
[358709860,1745398254770,-500.0,0.00046749,30]
[358709861,1745398254780,-813.53,0.00046749,30]
[358709863,1745398254789,-500.0,0.00046749,30]
[358709864,1745398254800,-813.53,0.00046749,30]
[358709865,1745398254809,-500.0,0.00046749,30]
[358709866,1745398254819,-813.53,0.00046749,30]
[358709867,1745398254829,-500.0,0.00046749,30]
[358709868,1745398254838,-813.53,0.00046749,30]
[358709869,1745398254848,-500.0,0.00046749,30]
[358709870,1745398254858,-813.53,0.00046749,30]
[358709871,1745398254867,-517.26490858,0.00046749,30]
[358709872,1745398254877,-813.53,0.00046749,30]
[358709873,1745398254887,-813.53,0.00046749,30]
[358709874,1745398254897,-383.15868111,0.00046749,30]
[358709875,1745398255579,-430.37131889,0.00046749,30]
[358709876,1745398255589,-813.53,0.00046749,30]
[358709877,1745398255599,-813.53,0.00046749,30]
[358709878,1745398255608,-813.53,0.00046749,30]
[358709879,1745398255618,-813.53,0.00046749,30]
[358709880,1745398255627,-813.53,0.00046749,30]
[358709881,1745398255636,-813.53,0.00046749,30]
[358709882,1745398255645,-500.0,0.00046749,30]
[358709883,1745398255655,-813.53,0.00046749,30]
[358709884,1745398255664,-216.96861586,0.00046749,30]
[358709885,1745398255673,-813.53,0.00046749,30]
[358709886,1745398255683,-813.53,0.00046749,30]
[358709887,1745398255692,-813.53,0.00046749,30]
[358709888,1745398255701,-813.75587099,0.00046749,30]
[358709889,1745398255710,-518.61760935,0.00046749,30]
[358709890,1745398255719,-836.87,0.00046749,30]
[358709891,1745398255728,-836.87,0.00046749,30]
[358709892,1745398255739,-243.24658499,0.00046749,30]
[358709893,1745398255757,-593.62341501,0.00046749,30]
[358709894,1745398255767,-836.87,0.00046749,30]
[358709895,1745398255776,-69.50658499,0.00046749,30]
[358709896,1745398255838,-767.36341501,0.00046749,30]
[358709897,1745398255847,-500.0,0.00046749,30]
[358709898,1745398255857,-32.2059876,0.00046749,30]
[358709899,1745398255869,-804.6640124,0.00046749,30]
[358709900,1745398255878,-500.0,0.00046749,30]
[358709901,1745398255887,-836.87,0.00046749,30]
[358709902,1745398255896,-500.0,0.00046749,30]
[358709903,1745398255906,-836.87,0.00046749,30]
[358709904,1745398255916,-500.0,0.00046749,30]
[358709905,1745398255925,-836.87,0.00046749,30]
[358709906,1745398255934,-500.0,0.00046749,30]
[358709907,1745398255943,-836.87,0.00046749,30]
[358709908,1745398255952,-500.0,0.00046749,30]
[358709909,1745398255962,-836.87,0.00046749,30]
[358709910,1745398255971,-500.0,0.00046749,30]
[358709911,1745398255981,-836.87,0.00046749,30]
[358709912,1745398255991,-500.0,0.00046749,30]
[358709913,1745398256000,-90.030082,0.00046749,30]
[358709914,1745398256095,-561.55039679,0.00042889,59]
[358709915,1745398256104,-150.0,0.0004299,7]
[358709916,1745398256115,-300.439862,0.00046748,14]
[358709917,1745398256124,-746.839918,0.00046749,30]
[358709918,1745398256135,-500.0,0.00046749,30]
[358709919,1745398256145,-836.87,0.00046749,30]
[358709920,1745398256155,-500.0,0.00046749,30]
[358709921,1745398256165,-836.87,0.00046749,30]
[358709922,1745398256174,-448.00656147,0.00046749,30]
[358709923,1745398256186,-836.87,0.00046749,30]
[358709924,1745398256196,-836.87,0.00046749,30]
[358709925,1745398256206,-146.86008427,0.00046749,30]
[358709926,1745398256220,-690.00991573,0.00046749,30]
[358709927,1745398256230,-836.87,0.00046749,30]
[358709928,1745398256239,-836.87,0.00046749,30]
[358709929,1745398256248,-836.87,0.00046749,30]
[358709930,1745398256258,-626.64350183,0.00046749,30]
[358709931,1745398256271,-210.22649817,0.00046749,30]
[358709932,1745398256281,-654.79090653,0.00046749,30]
[358709933,1745398256292,-182.07909347,0.00046749,30]
[358709934,1745398256302,-500.0,0.00046749,30]
[358709935,1745398256311,-403.92090653,0.00046749,30]
[358709936,1745398256335,-413.45271359,0.00046749,30]
[358709937,1745398256347,-19.59940315,0.00046749,30]
[358709938,1745398256356,-500.0,0.00046749,30]
[358709939,1745398256365,-500.0,0.00046749,30]
[358709940,1745398256375,-500.0,0.00046749,30]
[358709941,1745398256384,-500.0,0.00046749,30]
[358709942,1745398256394,-500.0,0.00046749,30]
[358709943,1745398256404,-500.0,0.00046749,30]
[358709944,1745398256413,-500.0,0.00046749,30]
[358709945,1745398256423,-500.0,0.00046749,30]
[358709946,1745398256433,-500.0,0.00046749,30]
[358709947,1745398256442,-500.0,0.00046749,30]
[358709948,1745398256451,-500.0,0.00046749,30]
[358709949,1745398256460,-500.0,0.00046749,30]
[358709950,1745398256470,-238.84358615,0.00046749,30]
[358709951,1745398256479,-759.05,0.00046749,30]
[358709952,1745398256489,-759.05,0.00046749,30]
[358709953,1745398256499,-759.05,0.00046749,30]
[358709954,1745398256510,-500.0,0.00046749,30]
[358709955,1745398256520,-759.05,0.00046749,30]
[358709956,1745398256529,-500.0,0.00046749,30]
[358709957,1745398256538,-759.05,0.00046749,30]
[358709958,1745398256549,-500.0,0.00046749,30]
[358709959,1745398256558,-500.0,0.00046749,30]
[358709960,1745398256567,-500.0,0.00046749,30]
[358709961,1745398256578,-759.05,0.00046749,30]
[358709962,1745398256587,-500.0,0.00046749,30]
[358709963,1745398256597,-759.05,0.00046749,30]
[358709964,1745398256606,-500.0,0.00046749,30]
[358709965,1745398256615,-759.05,0.00046749,30]
[358709966,1745398256625,-500.0,0.00046749,30]
[358709967,1745398256635,-759.05,0.00046749,30]
[358709968,1745398256645,-500.0,0.00046749,30]
[358709969,1745398256654,-759.05,0.00046749,30]
[358709970,1745398256665,-500.0,0.00046749,30]
[358709971,1745398256675,-500.0,0.00046749,30]
[358709972,1745398256684,-759.05,0.00046749,30]
[358709973,1745398256694,-500.0,0.00046749,30]
[358709974,1745398256703,-500.0,0.00046749,30]
[358709975,1745398256713,-759.05,0.00046749,30]
[358709976,1745398256723,-500.0,0.00046749,30]
[358709977,1745398256732,-759.05,0.00046749,30]
[358709978,1745398256742,-235.46355484,0.00046749,30]
[358709979,1745398256751,-500.0,0.00046749,30]
[358709980,1745398256761,-759.05,0.00046749,30]
[358709981,1745398256771,-500.0,0.00046749,30]
[358709982,1745398256780,-759.05,0.00046749,30]
[358709983,1745398256790,-500.0,0.00046749,30]
[358709984,1745398256799,-759.05,0.00046749,30]
[358709985,1745398256810,-500.0,0.00046749,30]
[358709986,1745398256819,-500.0,0.00046749,30]
[358709987,1745398256830,-759.05,0.00046749,30]
[358709988,1745398256839,-500.0,0.00046749,30]
[358709989,1745398256850,-759.05,0.00046749,30]
[358709990,1745398256859,-230.33090409,0.00046749,30]
[358709991,1745398256869,-759.05,0.00046749,30]
[358709992,1745398256878,-500.0,0.00046749,30]
[358709993,1745398256888,-759.05,0.00046749,30]
[358709994,1745398256897,-514.98179546,0.00046749,30]
[358709995,1745398256907,-71.95934437,0.00046749,30]
[358709996,1745398256942,-150.0,0.00046713,30]
[358709997,1745398256952,-310.90077994,0.00046749,30]
[358709998,1745398256963,-376.18987569,0.00046749,30]
[358709999,1745398256973,-500.0,0.00046749,16]
[358710000,1745398256982,-759.05,0.00046749,30]
[358710001,1745398256992,-500.0,0.00046749,16]
[358710002,1745398257002,-1562.17190858,0.00046749,30]
[358710010,1745398390838,500.0,0.00019966,7]
[358710016,1745398628351,469.34,0.00018048,2]
[358710026,1745398833662,2000.0,0.00037808,60]
[358710027,1745398833932,2000.0,0.00037808,60]
[358710028,1745398834664,2000.0,0.00037808,60]
[358710029,1745398835042,2000.0,0.00037808,60]
[358710030,1745398835375,2000.0,0.00037808,60]
[358710031,1745398835668,2000.0,0.00037808,60]
[358710032,1745398836015,2000.0,0.00037808,60]
[358710033,1745398836283,2000.0,0.00037808,60]
[358710034,1745398836713,2000.0,0.00037808,60]
[358710035,1745398837068,2000.0,0.00037808,60]
[358710098,1745399432225,-469.34,0.00020312,2]
[358710099,1745399432235,-250.0,0.00021,2]
[358710100,1745399432245,-250.0,0.00021444,2]
[358710101,1745399432255,-250.0,0.00022343,2]
[358710102,1745399432265,-469.34,0.00022576,2]
[358710103,1745399432275,-300.0,0.00023,2]
[358710104,1745399432285,-250.0,0.00024816,2]
[358710105,1745399432295,-469.34,0.0002484,2]
[358710106,1745399432304,-350.0,0.00025,2]
[358710107,1745399432315,-400.0,0.00027,2]
[358710108,1745399432324,-469.34,0.00027104,2]
[358710109,1745399432334,-450.0,0.00029,2]
[358710110,1745399432344,-469.34,0.00029368,2]
[358710111,1745399432353,-1276.42691939,0.000309,9]
[358710112,1745399432363,-500.0,0.00031,2]
[358710113,1745399432373,-1200.0,0.00031631,3]
[358710114,1745399432383,-469.34,0.00031632,2]
[358710115,1745399432392,-625.46381711,0.00031934,10]
[358710116,1745399432423,-424.99691067,0.00031934,10]
[358710117,1745399432476,-225.96619149,0.00031934,10]
[358710118,1745399432486,-396.0,0.00032876,2]
[358710119,1745399432501,-161.28,0.00032877,2]
[358710120,1745399432512,-163.78,0.00032877,30]
[358710121,1745399432521,-577.83489551,0.00032969,11]
[358710173,1745399438677,-687.12,0.00029246,2]
[358710372,1745399440714,-444.88,0.00029246,2]
[358710374,1745399440724,-479.57,0.00032246,2]
[358710376,1745399440734,-550.0,0.00033,2]
[358710378,1745399440743,-469.34,0.00033895,2]
[358710380,1745399440753,-1680.0,0.00034175,3]
[358710382,1745399440762,-600.0,0.00035,2]
[358710384,1745399440772,-500.0,0.00036071,15]
[358710386,1745399440782,-225.81609403,0.00036071,15]
[358710388,1745399440791,-469.34,0.00036159,2]
[358710390,1745399440801,-2351.0,0.00036924,3]
[358710392,1745399440811,-650.0,0.00037,2]
[358710394,1745399440820,-471.29026976,0.00038356,2]
[358710396,1745399440829,-469.34,0.00038423,2]
[358710398,1745399440839,-700.0,0.00039,2]
[358710400,1745399440849,-218.41,0.00039776,2]
[358710402,1745399440858,-500.0,0.00039813,7]
[358710404,1745399440868,-1922.0,0.00039894,5]
[358710406,1745399440878,-161.84,0.0003998,2]
[358710408,1745399440888,-2695.0,0.00040666,2]
[358710410,1745399440898,-152.0,0.00040673,3]
[358710412,1745399440908,-469.34,0.00040687,2]
[358710414,1745399440921,-750.0,0.00041,2]
[358710416,1745399440931,-161.28,0.00041096,2]
[358710418,1745399440941,-150.0,0.00041695,30]
[358710420,1745399440951,-201.05902538,0.00042074,14]
[358710422,1745399440960,-217.98390656,0.00042113,30]
[358710424,1745399440970,-152.73026843,0.00042113,30]
[358710426,1745399440980,-150.0,0.00042113,30]
[358710428,1745399440989,-150.0,0.00042113,30]
[358710430,1745399440999,-283.11423087,0.00042113,30]
[358710432,1745399441010,-765.27051608,0.00042113,30]
[358710434,1745399441019,-155.21,0.00042824,30]
[358710436,1745399441030,-574.0698,0.00042888,2]
[358710439,1745399441039,-1474.9382,0.00042888,2]
[358710441,1745399441049,-344.3544,0.00042888,2]
[358710442,1745399441058,-161.314,0.00042888,65]
[358710444,1745399441069,-469.34,0.00042951,2]
[358710446,1745399441078,-800.0,0.00043,2]
[358710448,1745399441089,-152.0,0.00043393,4]
[358710450,1745399441099,-2500.0,0.00043735,6]
[358710453,1745399441110,-2500.0,0.000438,6]
[358710455,1745399441121,-319.24551084,0.00043836,2]
[358710457,1745399441131,-10000.0,0.00043836,30]
[358710459,1745399441140,-5710.0,0.00043836,14]
[358710461,1745399441150,-500.0,0.00043836,31]
[358710463,1745399441159,-500.0,0.00043836,31]
[358710465,1745399441169,-500.0,0.00043836,31]
[358710467,1745399441178,-500.0,0.00043836,31]
[358710469,1745399441189,-500.0,0.00043836,31]
[358710471,1745399441199,-500.0,0.00043836,31]
[358710473,1745399441208,-500.0,0.00043836,31]
[358710475,1745399441218,-500.0,0.00043836,31]
[358710477,1745399441228,-500.0,0.00043836,31]
[358710479,1745399441238,-500.0,0.00043836,31]
[358710481,1745399441247,-500.0,0.00043836,31]
[358710483,1745399441256,-500.0,0.00043836,31]
[358710485,1745399441266,-500.0,0.00043836,31]
[358710487,1745399441275,-500.0,0.00043836,31]
[358710489,1745399441284,-422.49100323,0.00043836,31]
[358710491,1745399441294,-500.0,0.00043836,31]
[358710493,1745399441303,-500.0,0.00043836,31]
[358710495,1745399441313,-500.0,0.00043836,31]
[358710497,1745399441323,-500.0,0.00043836,31]
[358710499,1745399441333,-500.0,0.00043836,31]
[358710501,1745399441342,-173.77,0.00043888,30]
[358710503,1745399441352,-500.0,0.00044,30]
[358710505,1745399441361,-859.9984863,0.00044411,4]
[358710507,1745399441370,-500.0,0.000445,30]
[358710509,1745399441380,-345.28084248,0.00044658,120]
[358710511,1745399441390,-761.0,0.000449,30]
[358710513,1745399441399,-375.0,0.000449,30]
[358710515,1745399441409,-500.0,0.00045,30]
[358710517,1745399441418,-160.0,0.00045,90]
[358710519,1745399441430,-850.0,0.00045,2]
[358710521,1745399441440,-250.0,0.00045016,45]
[358710523,1745399441449,-163.78,0.00045129,7]
[358710525,1745399441459,-319.22,0.00045129,14]
[358710527,1745399441468,-469.34,0.00045215,2]
[358710549,1745399441699,-1000.0,0.00045238,2]
[358710550,1745399441737,-500.0,0.000455,30]
[358710551,1745399441747,-250.0,0.00045602,2]
[358710552,1745399441757,-23409.21,0.00045999,2]
[358710553,1745399441767,-524.0,0.00046,30]
[358710554,1745399441776,-468.474933,0.00046104,120]
[358710556,1745399441785,-2000.0,0.00046104,120]
[358710558,1745399441796,-508.767049,0.00046104,120]
[358710560,1745399441806,-176.961761,0.00046104,120]
[358710562,1745399441815,-200.0,0.00046104,120]
[358710564,1745399441825,-152.0,0.00046114,5]
[358710566,1745399441834,-308.2639,0.000464,2]
[358710568,1745399441844,-1333.0,0.00046466,120]
[358710570,1745399441853,-1698.0,0.000465,120]
[358710572,1745399441862,-963.7546,0.00046515,3]
[358710574,1745399441872,-2000.0,0.00046515,3]
[358710576,1745399441881,-200.0,0.00046515,2]
[358710578,1745399441890,-911.7568,0.00046539,2]
[358710580,1745399441899,-500.0,0.00046575,120]
[358710582,1745399441909,-150.0,0.00046575,120]
[358710584,1745399441923,-150.0,0.00046575,120]
[358710586,1745399441933,-150.0,0.00046575,120]
[358710588,1745399441943,-150.0,0.00046575,120]
[358710590,1745399441952,-1386.61,0.000466,2]
[358710592,1745399441963,-200.0,0.000466,2]
[358710594,1745399441974,-3744.0,0.000466,120]
[358710596,1745399441985,-500.0,0.0004663,120]
[358710598,1745399441996,-150.0,0.0004663,120]
[358710600,1745399442007,-150.0,0.0004663,120]
[358710602,1745399442017,-150.0,0.0004663,120]
[358710604,1745399442027,-2500.0,0.00046636,2]
[358710606,1745399442037,-175.3165,0.00046636,15]
[358710609,1745399442047,-2097.37565556,0.00046639,18]
[358710610,1745399442057,-2012.5339,0.00046639,2]
[358710613,1745399442067,-5000.0,0.00046646,120]
[358710615,1745399442077,-178.40402724,0.00046646,24]